bitfinex-derivatives/quotes_BTCF0:USTF0_20210104
["timestamp","ask_amount","ask_price","bid_price","bid_amount"]
[1609765032996,0.14768,31188.0,31164.0,0.12482]
[1609765033195,0.0972,31187.0,31164.0,0.12482]
[1609765033395,0.2089,31187.0,31164.0,0.12482]
[1609765033795,0.13632608,31180.0,31177.0,0.13632608]
[1609765034997,0.1117,31187.0,31177.0,0.13632608]
[1609765035598,0.0963,31186.0,31177.0,0.13632608]
[1609765035797,0.0963,31186.0,31185.0,0.13632608]
[1609765036199,0.1117,31187.0,31185.0,0.13632608]
[1609765037198,3.5893,31203.0,31185.0,0.13632608]
[1609765037399,0.5162,31194.0,31185.0,0.13632608]
[1609765037701,0.0966,31193.0,31185.0,0.13632608]
[1609765037900,0.0966,31193.0,31192.0,0.13632608]
[1609765038900,0.5162,31194.0,31192.0,0.13632608]
[1609765039101,0.5162,31194.0,31192.0,0.23292608]
[1609765039501,0.1202,31194.0,31192.0,0.23292608]
[1609765039902,0.217,31194.0,31192.0,0.23292608]
[1609765040501,0.0968,31194.0,31192.0,0.23292608]
[1609765041401,0.0329,31194.0,31192.0,0.23292608]
[1609765041603,0.0244,31194.0,31192.0,0.23292608]
[1609765042004,0.0961,31195.0,31192.0,0.23292608]
[1609765042005,0.13632608,31209.0,31192.0,0.23292608]
[1609765042504,0.07868641,33532.0,31192.0,0.23292608]
[1609765042707,1.69110562,31250.0,31192.0,0.23292608]
[1609765042905,1.69110562,31250.0,31205.0,1.0]
[1609765043107,0.0955,31214.0,31205.0,1.0]
[1609765043807,0.0955,31214.0,31213.0,0.13632608]
[1609765044906,0.0955,31214.0,31213.0,0.23222608]
[1609765046209,0.13632608,31222.0,31213.0,0.13632608]
[1609765046610,0.07868641,33532.0,31213.0,0.13632608]
[1609765046811,1.69056847,31254.0,31213.0,0.13632608]
[1609765047311,0.1925,31224.0,31213.0,0.23382608]
[1609765047510,0.3813,31215.0,31213.0,0.23382608]
[1609765047911,0.0958,31215.0,31213.0,0.23382608]
[1609765048513,0.0333,31215.0,31213.0,0.23382608]
[1609765048713,0.0129,31215.0,31213.0,0.23382608]
[1609765048913,0.035,31220.0,31213.0,0.23382608]
[1609765049113,0.1925,31224.0,31213.0,0.23382608]
[1609765049315,1.69409363,31259.0,31213.0,0.13632608]
[1609765049817,0.13632608,31242.0,31240.0,0.13632608]
[1609765050015,0.13632608,31242.0,31217.0,4.8743]
[1609765050215,0.13632608,31242.0,31217.0,5.0168]
[1609765051417,0.0954,31240.0,31218.0,0.0945]
[1609765051818,0.23316,31240.0,31239.0,0.13632608]
[1609765052019,0.23316,31240.0,31218.0,0.0945]
[1609765052219,0.13776,31240.0,31218.0,0.0945]
[1609765052420,0.13776,31240.0,31217.0,5.0168]
[1609765052920,0.13776,31240.0,31218.0,0.0974]
[1609765053320,0.0958,31239.0,31218.0,0.0974]
[1609765053922,0.0958,31239.0,31238.0,0.13632608]
[1609765055027,0.0958,31239.0,31238.0,0.23082608]
[1609765056430,0.0958,31239.0,31238.0,0.0945]
[1609765056830,0.13776,31240.0,31235.0,0.5773]
[1609765057230,0.47978531,31342.0,31235.0,0.5773]
[1609765057630,0.07138299,33610.0,31235.0,0.5773]
[1609765057830,0.0961,31260.0,31236.0,0.0971]
[1609765058029,0.11735,31260.0,31254.0,0.13632608]
[1609765059131,0.095,31259.0,31254.0,0.13632608]
[1609765059331,0.095,31259.0,31255.0,0.0965]
[1609765059531,0.11735,31260.0,31243.0,3.7136]
[1609765059930,0.13632608,31254.0,31251.0,0.13632608]
[1609765060831,0.11735,31260.0,31251.0,0.13632608]
[1609765061230,0.21395,31260.0,31251.0,0.13632608]
[1609765061533,0.30845,31260.0,31252.0,0.0946]
[1609765061933,0.30845,31260.0,31259.0,0.13632608]
[1609765062132,0.21185,31260.0,31259.0,0.13632608]
[1609765063035,0.21185,31260.0,31259.0,0.23232608]
[1609765064844,0.21185,31260.0,31259.0,0.096]
[1609765065042,4.05105,31260.0,31232.0,4.86972]
[1609765065242,0.0947,31259.0,19755.0,0.010218]
[1609765065640,3.9234,31252.0,31215.0,4.8801]
[1609765065841,4.1005,31252.0,31215.0,4.8801]
[1609765066044,0.13632608,31242.0,31238.0,0.13632608]
[1609765066241,0.28658608,31242.0,31238.0,0.13632608]
[1609765066636,0.15026,31242.0,31238.0,0.13632608]
[1609765067241,0.0956,31241.0,31239.0,0.0965]
[1609765067640,0.15026,31242.0,31238.0,0.13632608]
[1609765068743,0.0952,31241.0,31239.0,0.0961]
[1609765069744,0.15026,31242.0,31238.0,0.13632608]
[1609765069945,0.06405,31253.0,31238.0,0.13632608]
[1609765070545,0.11735,31260.0,31238.0,0.13632608]
[1609765070746,0.21355,31260.0,31239.0,0.0945]
[1609765070944,0.1913,31260.0,31239.0,0.0945]
[1609765071945,0.1913,31260.0,31259.0,0.13632608]
[1609765072146,0.0962,31260.0,31259.0,0.13632608]
[1609765073045,0.0962,31260.0,31259.0,0.23122608]
[1609765075448,0.1771,31292.0,31259.0,0.13632608]
[1609765075648,0.2854,31277.0,31259.0,0.13632608]
[1609765075850,0.2854,31277.0,31259.0,5.42332608]
[1609765076051,0.2854,31277.0,31259.0,5.287]
[1609765076552,0.42656,31277.0,31259.0,5.287]
[1609765077551,0.14116,31277.0,31259.0,5.287]
[1609765077758,0.14116,31277.0,31247.0,0.22628]
[1609765077759,0.14116,31277.0,31247.0,0.12898]
[1609765077956,0.14116,31277.0,31276.0,0.13632608]
[1609765078161,0.14116,31277.0,31247.0,0.12898]
[1609765079152,0.14116,31277.0,31248.0,0.0971]
[1609765079752,0.14116,31277.0,31247.0,0.12898]
[1609765079952,0.13632608,31253.0,31247.0,0.12898]
[1609765080352,0.11037,31256.0,31230.0,2.10249672]
[1609765080554,4.3542,31254.0,31226.0,2.10700783]
[1609765081353,0.1771,31253.0,31226.0,2.10700783]
[1609765081553,4.1327,31253.0,31226.0,2.10700783]
[1609765081953,4.1327,31253.0,31243.0,0.13632608]
[1609765082953,0.1771,31253.0,31243.0,0.13632608]
[1609765083555,0.1771,31253.0,31243.0,0.11902608]
[1609765083955,0.1771,31253.0,31243.0,0.02162608]
[1609765084155,0.25202608,31244.0,31243.0,0.02162608]
[1609765084356,5.46702608,31244.0,31243.0,0.02162608]
[1609765084556,5.46702608,31244.0,31218.0,0.12846]
[1609765085457,5.46702608,31244.0,31219.0,0.0967]
[1609765085658,5.46702608,31244.0,31220.0,0.0958]
[1609765085858,5.46702608,31244.0,31218.0,0.12846]
[1609765086058,5.3307,31244.0,31236.0,0.13632608]
[1609765086660,5.3307,31244.0,31218.0,0.12846]
[1609765087060,0.1157,31244.0,31207.0,2.10796968]
[1609765087261,4.8496,31231.0,31207.0,2.10796968]
[1609765087460,4.8496,31231.0,31205.0,0.0953]
[1609765087662,4.99944,31231.0,31205.0,0.0953]
[1609765088059,4.99944,31231.0,31225.0,0.13632608]
[1609765088260,0.14984,31231.0,31225.0,0.13632608]
[1609765088661,0.14984,31231.0,31212.0,4.73618]
[1609765088863,0.14984,31231.0,31212.0,0.15508]
[1609765089361,0.14951981,31231.0,31212.0,0.15508]
[1609765089563,3.616,31221.0,31199.0,2.11062634]
[1609765089761,0.14951981,31231.0,31196.0,2.1112286]
[1609765089965,0.14722,31221.0,31196.0,2.1112286]
[1609765090162,3.8618,31210.0,31209.0,0.13632608]
[1609765090562,3.8618,31210.0,31196.0,2.1112286]
[1609765090763,0.13811,31213.0,31196.0,2.1112286]
[1609765090963,4.5916,31197.0,31196.0,2.1112286]
[1609765091768,0.10263,31204.0,31193.0,2.11142909]
[1609765091964,0.7206,31201.0,31193.0,2.11142909]
[1609765092165,3.9675,31200.0,31193.0,2.11142909]
[1609765092363,0.10263,31204.0,31193.0,2.11142909]
[1609765092564,4.3767,31196.0,31193.0,2.11142909]
[1609765092964,4.3767,31196.0,31186.0,0.09956]
[1609765092965,4.3767,31196.0,31186.0,2.21412727]
[1609765093164,4.3767,31196.0,31195.0,0.13632608]
[1609765093664,0.13632608,31203.0,31195.0,0.13632608]
[1609765094465,0.70072608,31203.0,31195.0,0.13632608]
[1609765094667,0.5644,31203.0,31195.0,0.13632608]
[1609765094865,0.10263,31204.0,31195.0,0.13632608]
[1609765095267,0.10263,31204.0,31202.0,0.13632608]
[1609765095667,4.287,31203.0,31202.0,0.13632608]
[1609765095867,4.287,31203.0,31186.0,0.09956]
[1609765097166,4.287,31203.0,31200.0,0.13632608]
[1609765097366,0.10263,31204.0,31200.0,0.13632608]
[1609765097566,4.6438,31204.0,31200.0,0.13632608]
[1609765099169,0.13632608,31201.0,31200.0,0.13632608]
[1609765099367,0.28225608,31201.0,31200.0,0.13632608]
[1609765100870,0.14593,31201.0,31200.0,0.13632608]
[1609765103273,0.28225608,31201.0,31200.0,0.13632608]
[1609765107778,0.28225608,31201.0,31179.0,4.0349]
[1609765108378,0.28225608,31201.0,31175.0,0.13855]
[1609765108979,3.8457,31198.0,31175.0,0.13855]
[1609765109380,0.14593,31201.0,31175.0,0.13855]
[1609765109579,4.1985,31184.0,31167.0,2.12521287]
[1609765109779,4.1985,31184.0,31183.0,0.13632608]
[1609765110479,0.13632608,31185.0,31183.0,0.13632608]
[1609765110680,0.13632608,31185.0,31169.0,0.1047]
[1609765111081,5.2753,31178.0,31169.0,0.1047]
[1609765111881,5.2753,31178.0,31176.0,0.13632608]
[1609765112481,0.10283,31187.0,31169.0,0.1047]
[1609765112882,5.369,31170.0,31169.0,0.1047]
[1609765113884,5.50532608,31170.0,31169.0,0.24102608]
[1609765114984,5.369,31170.0,31169.0,0.1047]
[1609765115183,5.369,31170.0,31149.0,2.1183]
[1609765115385,0.10261,31179.0,31149.0,2.1183]
[1609765115585,4.8849,31167.0,31149.0,2.25214]
[1609765115785,4.8849,31167.0,31166.0,0.13632608]
[1609765115986,0.10261,31179.0,31166.0,0.13632608]
[1609765116585,4.4675,31170.0,31166.0,0.13632608]
[1609765116787,4.60265,31170.0,31166.0,0.13632608]
[1609765117887,0.13632608,31167.0,31166.0,0.13632608]
[1609765119389,0.13515,31170.0,31166.0,0.13632608]
[1609765120488,0.23919,31200.0,31166.0,0.13632608]
[1609765121094,0.23919,31200.0,31163.0,0.15539]
[1609765121295,0.35974,31200.0,31163.0,0.15539]
[1609765121694,0.12055,31200.0,31163.0,0.15539]
[1609765121895,0.12055,31200.0,31199.0,0.13632608]
[1609765122294,0.93651894,31211.0,31199.0,0.13632608]
[1609765122499,0.13811,31213.0,31199.0,0.13632608]
[1609765122894,0.93920438,31221.0,31199.0,0.13632608]
[1609765123295,0.93920438,31221.0,31201.0,4.4712]
[1609765124295,0.9438107,31237.0,31201.0,4.4712]
[1609765124496,0.9438107,31237.0,31234.0,0.13632608]
[1609765124895,0.18412759,31248.0,31234.0,0.13632608]
[1609765126400,1.08713813,31254.0,31247.0,0.13632608]
[1609765127016,1.08713813,31254.0,31229.0,0.13792]
[1609765127196,1.20965813,31254.0,31229.0,0.13792]
[1609765127596,1.20965813,31254.0,31219.0,5.47451]
[1609765127797,0.25884608,31254.0,31219.0,0.13371]
[1609765127997,4.1962,31247.0,31219.0,0.13371]
[1609765128197,4.35265,31247.0,31203.0,4.1138]
[1609765128399,0.13632608,31225.0,31222.0,0.13632608]
[1609765128598,0.13632608,31225.0,31203.0,4.1138]
[1609765128799,0.29373608,31225.0,31203.0,4.1138]
[1609765128998,0.15741,31225.0,31203.0,4.1138]
[1609765130398,0.15741,31225.0,31224.0,0.13632608]
[1609765132102,0.15741,31225.0,31211.0,0.626]
[1609765132500,0.15741,31225.0,31224.0,0.13632608]
[1609765132901,0.2863,31246.0,31224.0,0.13632608]
[1609765134506,0.2863,31246.0,31245.0,0.13632608]
[1609765137808,0.2863,31246.0,31218.0,5.1581]
[1609765138608,0.2863,31246.0,31240.0,0.13632608]
[1609765138609,0.13632608,31244.0,31240.0,0.13632608]
[1609765139314,0.13632608,31244.0,31218.0,5.1581]
[1609765139723,0.13632608,31244.0,31217.0,0.11699]
[1609765139922,3.6558,31239.0,31210.0,0.15325]
[1609765140127,0.15735,31239.0,31193.0,2.1209575]
[1609765140329,4.2124,31224.0,31193.0,2.1209575]
[1609765140513,4.37131,31224.0,31193.0,2.1209575]
[1609765141414,4.37131,31224.0,31191.0,2.1221718]
[1609765142515,4.37131,31224.0,31210.0,0.13632608]
[1609765144515,0.13632608,31211.0,31210.0,0.13632608]
[1609765144715,0.26045608,31211.0,31210.0,0.13632608]
[1609765146117,0.12413,31211.0,31210.0,0.13632608]
[1609765146620,0.94275608,31211.0,31210.0,0.13632608]
[1609765147020,0.94275608,31211.0,31206.0,0.0946]
[1609765147420,0.26045608,31211.0,31193.0,0.13567]
[1609765147621,4.7954,31206.0,31193.0,0.13567]
[1609765147825,4.7954,31206.0,31186.0,0.10852]
[1609765148022,0.26045608,31211.0,31148.0,3.85875122]
[1609765148223,4.7209,31192.0,31175.0,2.12402244]
[1609765148623,0.15416,31197.0,31191.0,0.13632608]
[1609765148823,0.15416,31197.0,31180.0,0.15059]
[1609765149625,0.70116,31197.0,31180.0,0.15059]
[1609765150025,0.70116,31197.0,31173.0,0.1141]
[1609765150625,0.70116,31197.0,31187.0,0.13632608]
[1609765151426,0.15416,31197.0,31187.0,0.13632608]
[1609765152426,0.15416,31197.0,31173.0,0.11333]
[1609765152427,0.15416,31197.0,31178.0,3.973]
[1609765153038,0.15416,31197.0,31196.0,0.13632608]
[1609765153628,0.2835,31209.0,31196.0,0.13632608]
[1609765155128,0.2835,31209.0,31184.0,0.15932]
[1609765155129,0.2835,31209.0,31207.0,0.13632608]
[1609765155929,0.2835,31209.0,31184.0,0.15932]
[1609765157031,0.13632608,31208.0,31206.0,0.13632608]
[1609765158333,0.83532608,31208.0,31206.0,0.13632608]
[1609765158835,0.699,31208.0,31206.0,0.13632608]
[1609765161040,0.83532608,31208.0,31206.0,0.13632608]
[1609765161642,0.13632608,31208.0,31206.0,0.13632608]
[1609765162242,0.2835,31209.0,31206.0,0.13632608]
[1609765163246,0.1771,31218.0,31206.0,0.13632608]
[1609765163844,0.1771,31218.0,31203.0,4.1317]
[1609765164445,0.15891,31224.0,31203.0,4.1317]
[1609765164846,0.2922,31231.0,31203.0,4.1317]
[1609765165047,0.2922,31231.0,31230.0,0.13632608]
[1609765169750,0.1771,31237.0,31230.0,0.13632608]
[1609765170151,0.82854378,31245.0,31230.0,0.13632608]
[1609765170353,0.8283267,31249.0,31230.0,0.13632608]
[1609765171052,0.8283267,31249.0,31228.0,5.0243]
[1609765171053,0.8283267,31249.0,31238.0,0.13632608]
[1609765172555,0.2943,31252.0,31238.0,0.13632608]
[1609765173057,0.13632608,31251.0,31238.0,0.13632608]
[1609765173460,0.2943,31252.0,31238.0,0.13632608]
[1609765176960,0.2943,31252.0,31228.0,5.0243]
[1609765177361,0.2943,31252.0,31238.0,0.13632608]
[1609765179363,0.2943,31252.0,31228.0,5.0243]
[1609765179965,0.2943,31252.0,31238.0,0.13632608]
[1609765182467,0.2943,31252.0,31228.0,5.0243]
[1609765182468,1.05385,31239.0,31228.0,5.0243]
[1609765183669,1.05385,31239.0,31229.0,0.0961]
[1609765183869,1.05385,31239.0,31238.0,0.13632608]
[1609765184069,1.05385,31239.0,31238.0,0.23272608]
[1609765184369,0.95735,31239.0,31238.0,0.13632608]
[1609765184973,0.95735,31239.0,31213.0,7.0738]
[1609765185172,0.95735,31239.0,31229.0,5.1029]
[1609765185372,1.05465,31239.0,31230.0,0.0948]
[1609765185573,1.05465,31239.0,31231.0,0.0963]
[1609765185873,1.05465,31239.0,31238.0,0.13632608]
[1609765186073,0.95735,31239.0,31238.0,0.13632608]
[1609765187076,1.05295,31239.0,31238.0,0.23302608]
[1609765187276,1.05295,31239.0,31238.0,0.0967]
[1609765187476,0.95735,31239.0,31229.0,5.1029]
[1609765187677,0.95735,31239.0,31229.0,5.0648]
[1609765187878,0.95735,31239.0,31238.0,0.13632608]
[1609765200496,0.95735,31239.0,31238.0,3.80312608]
[1609765201097,0.95735,31239.0,31238.0,0.13632608]
[1609765203696,1.05235,31239.0,31238.0,0.13632608]
[1609765204099,1.05235,31239.0,31238.0,4.62532608]
[1609765204697,1.05235,31239.0,31238.0,4.72082608]
[1609765204897,1.05235,31239.0,31238.0,0.23182608]
[1609765205699,0.95735,31239.0,31238.0,0.23182608]
[1609765205899,0.95735,31239.0,31238.0,0.13632608]
[1609765206703,1.05415,31239.0,31238.0,0.13632608]
[1609765207107,1.05415,31239.0,31238.0,0.23132608]
[1609765207302,1.05415,31239.0,31238.0,0.13632608]
[1609765207303,0.95735,31239.0,31238.0,0.13632608]
[1609765207503,0.95735,31239.0,31215.0,4.56042]
[1609765207701,0.95735,31239.0,31215.0,4.35742]
[1609765208003,0.1771,31238.0,31215.0,4.35742]
[1609765208401,0.95735,31239.0,31215.0,4.35742]
[1609765208402,0.95735,31239.0,31215.0,4.45352]
[1609765208601,0.95735,31239.0,31216.0,0.0953]
[1609765209001,4.8723,31235.0,31208.0,2.11978946]
[1609765209201,5.323,31229.0,31208.0,2.11978946]
[1609765209402,5.47348,31229.0,31208.0,2.11978946]
[1609765210103,5.47348,31229.0,31193.0,2.12088402]
[1609765210304,0.0952,31228.0,31193.0,2.12088402]
[1609765211306,0.0952,31228.0,31191.0,4.7212]
[1609765212108,0.13632608,31224.0,31220.0,0.13632608]
[1609765212308,0.72082608,31224.0,31220.0,0.13632608]
[1609765212507,0.5845,31224.0,31191.0,4.7212]
[1609765212707,5.0943,31224.0,31187.0,2.12727865]
[1609765213207,0.3784,31223.0,31188.0,0.0959]
[1609765213407,0.3784,31223.0,31187.0,2.12727865]
[1609765213809,0.3784,31223.0,31186.0,2.12768127]
[1609765214111,0.3784,31223.0,31219.0,0.13632608]
[1609765214309,0.0973,31223.0,31219.0,0.13632608]
[1609765214510,4.5681,31224.0,31219.0,0.13632608]
[1609765214712,0.0954,31224.0,31219.0,2.608e-05]
[1609765214912,4.8414,31220.0,31193.0,0.14292]
[1609765215311,4.94004,31220.0,31193.0,0.14292]
[1609765216012,0.0964,31219.0,31193.0,0.07352]
[1609765216414,4.94004,31220.0,31192.0,4.1577]
[1609765216613,4.94004,31220.0,31192.0,4.0927]
[1609765217015,0.09864,31220.0,31184.0,0.09988]
[1609765217217,4.2243,31205.0,31184.0,0.09988]
[1609765217417,0.0966,31204.0,31184.0,0.09988]
[1609765217817,0.0966,31204.0,31185.0,0.0969]
[1609765218618,0.0966,31204.0,31177.0,0.14822]
[1609765218819,0.0966,31204.0,31175.0,0.48984811]
[1609765219621,0.0966,31204.0,31176.0,0.0973]
[1609765220223,0.13632608,31187.0,31186.0,0.13632608]
[1609765220425,0.29110608,31187.0,31186.0,0.23362608]
[1609765220623,0.29110608,31187.0,31186.0,0.21852608]
[1609765221325,0.25188,31187.0,31186.0,0.21852608]
[1609765221824,0.25188,31187.0,31186.0,0.21072608]
[1609765222727,0.25188,31187.0,31186.0,0.11342608]
[1609765223026,0.15478,31187.0,31186.0,0.11342608]
[1609765223725,5.39968,31187.0,31186.0,0.20872608]
[1609765224124,5.49698,31187.0,31186.0,0.02242608]
[1609765224325,5.49698,31187.0,31168.0,0.1932]
[1609765224326,5.49698,31187.0,31113.0,0.015]
[1609765224525,5.39968,31187.0,31113.0,0.015]
[1609765224725,4.9097,31174.0,31140.0,8.6143781]
[1609765225126,5.05662,31174.0,31140.0,8.6143781]
[1609765225327,5.05662,31174.0,31159.0,0.0962]
[1609765226126,0.13632608,31160.0,31154.0,2.12798477]
[1609765226326,3.7519,31158.0,31154.0,2.05618477]
[1609765226527,3.7519,31158.0,31153.0,0.13632608]
[1609765226926,3.7519,31158.0,31140.0,2.31570572]
[1609765227127,0.15975,31163.0,31141.0,0.0974]
[1609765227928,0.0972,31162.0,31141.0,0.0974]
[1609765228128,0.6387,31156.0,31152.0,0.13632608]
[1609765228327,0.15975,31163.0,31137.0,0.11782]
[1609765228528,5.159,31152.0,31137.0,0.11782]
[1609765230429,5.159,31152.0,31118.0,2.30339656]
[1609765232330,5.159,31152.0,31143.0,0.13632608]
[1609765234234,0.14626,31156.0,31143.0,0.07732608]
[1609765234434,0.26704608,31144.0,31143.0,0.01172608]
[1609765234633,0.13072,31144.0,31128.0,0.14561]
[1609765236437,0.13072,31144.0,31140.0,0.13632608]
[1609765236837,0.13072,31144.0,31128.0,0.14561]
[1609765237038,0.13072,31144.0,31111.0,3.8598]
[1609765238039,0.13072,31144.0,31101.0,2.10083032]
[1609765238437,5.02042,31136.0,31130.0,0.13632608]
[1609765238837,5.02042,31136.0,31130.0,0.11782608]
[1609765239038,5.02042,31136.0,31130.0,0.04302608]
[1609765239240,5.02042,31136.0,31113.0,0.12133]
[1609765240240,5.02042,31136.0,31093.0,2.09302816]
[1609765240440,0.13632608,31113.0,31112.0,0.13632608]
[1609765241041,0.13632608,31113.0,31093.0,2.09302816]
[1609765241441,4.9133,31116.0,31093.0,2.09302816]
[1609765241641,4.9133,31116.0,31093.0,2.25198816]
[1609765242043,4.9133,31116.0,31093.0,0.15896]
[1609765242442,0.13542,31121.0,31095.0,0.13632608]
[1609765242642,4.5258,31109.0,31095.0,0.13632608]
[1609765242842,4.5258,31109.0,31093.0,0.15896]
[1609765243043,0.13154,31111.0,31093.0,0.15896]
[1609765243245,3.6635,31095.0,31085.0,0.11969]
[1609765243843,3.80597,31095.0,31085.0,0.11969]
[1609765244244,3.80597,31095.0,31075.0,2.08750516]
[1609765244444,3.80597,31095.0,31085.0,0.13632608]
[1609765245345,3.80597,31095.0,31071.0,0.14541]
[1609765245945,3.80597,31095.0,31071.0,0.24081]
[1609765246446,0.13632608,31090.0,31087.0,0.13632608]
[1609765246654,0.14247,31095.0,31087.0,0.13632608]
[1609765246852,0.1518,31103.0,31075.0,0.0958]
[1609765247050,0.1518,31103.0,31084.0,0.10955]
[1609765247850,5.4896,31110.0,31084.0,0.10955]
[1609765248050,0.2912,31110.0,31084.0,0.10955]
[1609765248450,0.2912,31110.0,31109.0,0.13632608]
[1609765248649,0.13154,31111.0,31109.0,0.13632608]
[1609765248858,0.13632608,31118.0,31109.0,0.13632608]
[1609765249252,0.13542,31121.0,31109.0,0.13632608]
[1609765249452,0.2812,31129.0,31109.0,0.13632608]
[1609765250554,0.8,31130.0,31128.0,0.13632608]
[1609765251153,0.57,31130.0,31119.0,4.9567]
[1609765251354,0.71586,31130.0,31119.0,4.9567]
[1609765252554,0.57,31130.0,31129.0,0.13632608]
[1609765253554,0.57,31130.0,31129.0,5.25432608]
[1609765254154,0.5542,31130.0,31129.0,5.25432608]
[1609765254958,0.5542,31130.0,31129.0,0.13632608]
[1609765257062,0.5542,31130.0,31118.0,0.14822]
[1609765257861,0.5542,31130.0,31114.0,0.0956]
[1609765258061,0.5542,31130.0,31100.0,4.3417]
[1609765258463,0.13632608,31117.0,31116.0,0.13632608]
[1609765258862,0.13632608,31117.0,31100.0,4.3417]
[1609765259063,0.13632608,31117.0,31100.0,4.4379]
[1609765259262,0.13632608,31117.0,31100.0,4.3417]
[1609765260066,0.13632608,31117.0,31092.0,0.0966]
[1609765260266,0.13632608,31117.0,31096.0,0.0957]
[1609765260469,0.13571,31121.0,31110.0,0.13632608]
[1609765260669,0.13571,31121.0,31111.0,0.0949]
[1609765261070,0.66191,31121.0,31084.0,0.10955]
[1609765262072,0.13571,31121.0,31084.0,0.10955]
[1609765262268,3.6372,31118.0,31085.0,0.097]
[1609765262469,0.0978,31117.0,31100.0,0.13632608]
[1609765262669,0.13632608,31103.0,31100.0,0.13632608]
[1609765262869,0.25001608,31103.0,31100.0,0.13632608]
[1609765263069,0.25001608,31103.0,31085.0,0.097]
[1609765263271,0.25001608,31103.0,31081.0,0.0964]
[1609765263272,0.25001608,31103.0,31063.0,0.0971]
[1609765263770,0.0958,31102.0,31063.0,0.0971]
[1609765263971,0.25001608,31103.0,31063.0,0.0971]
[1609765264171,0.25001608,31103.0,31068.0,0.0953]
[1609765264571,0.25001608,31103.0,31087.0,0.13632608]
[1609765264572,0.13632608,31092.0,31087.0,0.13632608]
[1609765264772,0.12022,31092.0,31087.0,0.13632608]
[1609765265772,0.0976,31091.0,31088.0,0.0977]
[1609765266373,0.0976,31091.0,31087.0,0.13632608]
[1609765266573,0.0976,31091.0,31089.0,0.13632608]
[1609765266874,0.0976,31091.0,31089.0,0.23162608]
[1609765267375,0.12022,31092.0,31089.0,0.13632608]
[1609765267776,0.12022,31092.0,31076.0,0.097]
[1609765268379,0.0968,31091.0,31076.0,0.097]
[1609765268577,0.0968,31091.0,31089.0,0.13632608]
[1609765268779,0.0968,31091.0,31089.0,0.23382608]
[1609765269778,0.0968,31091.0,31084.0,0.0965]
[1609765270179,0.12022,31092.0,31076.0,0.097]
[1609765270379,0.11369,31103.0,31076.0,0.097]
[1609765270579,4.2935,31111.0,31083.0,0.13632608]
[1609765270979,4.2935,31111.0,31076.0,0.097]
[1609765271179,0.0975,31110.0,31076.0,0.097]
[1609765272281,0.0975,31110.0,31053.0,0.2859]
[1609765272481,0.0975,31110.0,31063.0,0.0977]
[1609765272681,0.0975,31110.0,31050.0,2.08436212]
[1609765272881,0.0975,31110.0,31059.0,0.15932]
[1609765273684,4.2067,31099.0,31060.0,0.096]
[1609765273884,0.0966,31098.0,31060.0,0.096]
[1609765274086,0.11688,31098.0,31060.0,0.096]
[1609765274686,0.11688,31098.0,31067.0,0.13632608]
[1609765274884,0.11688,31098.0,31068.0,0.0959]
[1609765275984,0.11688,31098.0,31063.0,0.0973]
[1609765275985,4.3469,31094.0,31063.0,0.0973]
[1609765276184,0.0962,31093.0,31060.0,0.096]
[1609765276385,0.0977,31092.0,31059.0,0.15932]
[1609765276686,0.13632608,31066.0,31063.0,0.13632608]
[1609765277084,0.14964,31069.0,31052.0,5.0099]
[1609765277285,0.14964,31069.0,31052.0,5.10817]
[1609765277785,4.3469,31094.0,31052.0,5.1078498]
[1609765277985,0.21752,31111.0,31053.0,0.0951]
[1609765278187,0.21752,31111.0,31063.0,4.2066]
[1609765278385,0.21752,31111.0,31064.0,0.25583]
[1609765278785,0.0962,31100.0,31097.0,0.13632608]
[1609765279987,0.0962,31100.0,31097.0,0.23282608]
[1609765281691,0.12062,31111.0,31097.0,0.13632608]
[1609765282189,0.07868641,33176.0,31097.0,0.13632608]
[1609765282590,0.0977,31114.0,31098.0,0.0958]
[1609765282791,0.22323,31114.0,31111.0,0.13632608]
[1609765283189,0.12553,31114.0,31111.0,0.13632608]
[1609765283990,0.12553,31114.0,31112.0,0.0963]
[1609765284192,0.22293,31114.0,31112.0,0.0963]
[1609765284591,0.12553,31114.0,31092.0,4.6045]
[1609765284790,0.13632608,31113.0,31106.0,0.13632608]
[1609765285291,0.13632608,31113.0,31011.0,0.5331]
[1609765285492,0.13632608,31113.0,31066.0,2.10631803]
[1609765285691,0.13632608,31113.0,31077.0,4.0112]
[1609765285891,0.13632608,31113.0,31077.0,3.9157]
[1609765286696,0.13632608,31096.0,31095.0,0.13632608]
[1609765286898,0.13632608,31096.0,31084.0,0.0955]
[1609765287095,0.13632608,31096.0,31078.0,0.0961]
[1609765287295,0.13632608,31096.0,31068.0,4.9583]
[1609765288298,0.0974,31095.0,31071.0,0.096]
[1609765288697,0.0974,31095.0,31079.0,0.13632608]
[1609765288896,0.0974,31095.0,31080.0,0.0977]
[1609765289096,4.4176,31088.0,31080.0,0.0977]
[1609765289298,4.54994,31088.0,31068.0,2.11661707]
[1609765290098,0.13234,31088.0,31068.0,2.11661707]
[1609765290299,5.0779,31076.0,31069.0,0.0964]
[1609765290498,5.23123,31076.0,31069.0,0.0964]
[1609765290699,0.13632608,31070.0,31069.0,0.0964]
[1609765290901,0.65372608,31070.0,31069.0,0.0964]
[1609765291399,0.65372608,31070.0,31053.0,0.13632608]
[1609765292701,0.5174,31070.0,31059.0,0.13632608]
[1609765294201,0.5174,31070.0,31052.0,0.09827]
[1609765294202,0.15333,31076.0,31052.0,0.09827]
[1609765294601,0.12809,31066.0,31041.0,2.11982439]
[1609765294801,4.8928,31062.0,31054.0,0.13632608]
[1609765295401,0.12809,31066.0,31054.0,0.13632608]
[1609765296003,0.12809,31066.0,31048.0,0.10981]
[1609765296403,0.12809,31066.0,31045.0,0.0975]
[1609765296602,0.12809,31066.0,31041.0,0.0978]
[1609765296803,0.12809,31066.0,31049.0,0.13632608]
[1609765297905,0.12809,31066.0,31049.0,0.23282608]
[1609765298704,0.13632608,31054.0,31053.0,0.13632608]
[1609765300104,0.13632608,31054.0,31048.0,0.0955]
[1609765300504,0.14813,31057.0,31048.0,0.0955]